[Event "Titled Tuesday Blitz November 08 Early 2022"]
[White "Cramling Bellon, Anna"]
[Black "Matveeva, Olga"]
[WhiteFideId "32009232"]
[BlackFideId "24107018"]
[WhiteElo "1972"]
[BlackElo "2055"]
[Result "0-1"]
[Round "05"]
[TimeControl "180+1"]
[Date "2022.11.09"]
[WhiteClock "0:00:06"]
[BlackClock "0:00:54"]

1. d4 {[%clk 0:02:40]}  Nf6 {[%clk 0:02:59]} 2. c4 {[%clk 0:02:39]}  d6 {[%clk 0:02:59]} 3. Nc3 {[%clk 0:02:39]}  e5 {[%clk 0:02:59]} 4. dxe5 {[%clk 0:02:35]}  dxe5 {[%clk 0:03:00]} 5. Qxd8+ {[%clk 0:02:36]}  Kxd8 {[%clk 0:03:01]} 6. Bg5 {[%clk 0:02:36]}  Nd7 {[%clk 0:03:00]} 7. O-O-O {[%clk 0:02:35]}  c6 {[%clk 0:03:00]} 8. Nf3 {[%clk 0:02:26]}  Kc7 {[%clk 0:02:59]} 9. Bxf6 {[%clk 0:02:21]}  gxf6 {[%clk 0:02:58]} 10. e4 {[%clk 0:02:12]}  Bb4 {[%clk 0:02:55]} 11. Kc2 {[%clk 0:02:09]}  Nc5 {[%clk 0:02:52]} 12. Bd3 {[%clk 0:02:09]}  Bg4 {[%clk 0:02:49]} 13. a3 {[%clk 0:02:02]}  Bxc3 {[%clk 0:02:48]} 14. Kxc3 {[%clk 0:02:02]}  Bxf3 {[%clk 0:02:48]} 15. gxf3 {[%clk 0:02:03]}  Ne6 {[%clk 0:02:46]} 16. Rhg1 {[%clk 0:01:49]}  Rhg8 {[%clk 0:02:44]} 17. b4 {[%clk 0:01:42]}  Nd4 {[%clk 0:02:37]} 18. Rg3 {[%clk 0:01:36]}  Rxg3 {[%clk 0:02:23]} 19. fxg3 {[%clk 0:01:37]}  Rd8 {[%clk 0:02:12]} 20. f4 {[%clk 0:01:33]}  Kd6 {[%clk 0:02:09]} 21. c5+ {[%clk 0:01:32]}  Ke7 {[%clk 0:02:07]} 22. fxe5 {[%clk 0:01:19]}  fxe5 {[%clk 0:02:08]} 23. Rf1 {[%clk 0:01:16]}  f6 {[%clk 0:02:08]} 24. g4 {[%clk 0:01:12]}  h6 {[%clk 0:02:06]} 25. Bc4 {[%clk 0:01:12]}  b6 {[%clk 0:02:04]} 26. h4 {[%clk 0:01:02]}  b5 {[%clk 0:01:51]} 27. Ba2 {[%clk 0:00:38]}  Ne2+ {[%clk 0:01:50]} 28. Kc2 {[%clk 0:00:35]}  Rd4 {[%clk 0:01:33]} 29. g5 {[%clk 0:00:20]}  hxg5 {[%clk 0:01:30]} 30. hxg5 {[%clk 0:00:19]}  fxg5 {[%clk 0:01:29]} 31. Rf7+ {[%clk 0:00:19]}  Ke8 {[%clk 0:01:28]} 32. Rxa7 {[%clk 0:00:17]}  Rxe4 {[%clk 0:01:23]} 33. Rc7 {[%clk 0:00:07]}  Nd4+ {[%clk 0:01:18]} 34. Kd3 {[%clk 0:00:06]}  Re2 {[%clk 0:01:15]} 35. Bf7+ {[%clk 0:00:04]}  Kd8 {[%clk 0:01:12]} 36. Ra7 {[%clk 0:00:04]}  Rh2 {[%clk 0:01:11]} 37. Ra8+ {[%clk 0:00:02]}  Ke7 {[%clk 0:01:11]} 38. Ra7+ {[%clk 0:00:01]}  Kf6 {[%clk 0:01:10]} 39. Be8 {[%clk 0:00:02]}  Rh3+ {[%clk 0:01:09]} 40. Kd2 {[%clk 0:00:01]}  Rh2+ {[%clk 0:01:06]} 41. Kd3 {[%clk 0:00:01]}  g4 {[%clk 0:01:06]} 42. Ra6 {[%clk 0:00:01]}  g3 {[%clk 0:01:05]} 43. Bxc6 {[%clk 0:00:01]}  Nxc6 {[%clk 0:01:03]} 44. Rxc6+ {[%clk 0:00:02]}  Kf5 {[%clk 0:01:03]} 45. Rc8 {[%clk 0:00:01]}  Rh4 {[%clk 0:01:00]} 46. Ke3 {[%clk 0:00:01]}  Rg4 {[%clk 0:00:58]} 47. Kf3 {[%clk 0:00:01]}  g2 {[%clk 0:00:55]} 48. Rf8+ {[%clk 0:00:02]}  Ke6 {[%clk 0:00:55]} 49. Re8+ {[%clk 0:00:01]}  Kd7 {[%clk 0:00:54]} 50. Kxg4 {[%clk 0:00:01]}  g1=Q+ {[%clk 0:00:54]} 51. Kf5 {[%clk 0:00:02]}  Kxe8 {[%clk 0:00:54]} 52. Kxe5 {[%clk 0:00:02]}  Qe3+ {[%clk 0:00:54]} 53. Kd6 {[%clk 0:00:02]}  Qxa3 {[%clk 0:00:54]} 54. c6 {[%clk 0:00:03]}  Qxb4+ {[%clk 0:00:54]} 55. Kc7 {[%clk 0:00:02]}  Qc5 {[%clk 0:00:54]} 56. Kb7 {[%clk 0:00:02]}  b4 {[%clk 0:00:54]} 57. c7 {[%clk 0:00:03]}  b3 {[%clk 0:00:54]} 58. c8=Q+ {[%clk 0:00:03]}  Qxc8+ {[%clk 0:00:54]} 59. Kxc8 {[%clk 0:00:04]}  b2 {[%clk 0:00:54]} 60. Kc7 {[%clk 0:00:05]}  b1=Q {[%clk 0:00:54]} 61. Kc8 {[%clk 0:00:06]}  Qc2+ {[%clk 0:00:54]} 0-1


[Site "https://www.chess.com"]

[Event "Titled Tuesday Blitz November 08 Early 2022"]
[White "D`Arruda, Ricardo D."]
[Black "Papasimakopoulos, Alexandros"]
[WhiteFideId "100692"]
[BlackFideId "4244125"]
[WhiteElo "2502"]
[BlackElo "2365"]
[Result "1-0"]
[Round "05"]
[TimeControl "180+1"]
[Date "2022.11.09"]
[WhiteClock "0:00:29"]
[BlackClock "0:00:02"]

1. d4 {[%clk 0:02:48]}  e6 {[%clk 0:02:55]} 2. e4 {[%clk 0:02:47]}  d5 {[%clk 0:02:55]} 3. Nc3 {[%clk 0:02:46]}  Bb4 {[%clk 0:02:49]} 4. Qg4 {[%clk 0:02:45]}  Nf6 {[%clk 0:02:49]} 5. Qxg7 {[%clk 0:02:44]}  Rg8 {[%clk 0:02:49]} 6. Qh6 {[%clk 0:02:45]}  Rg6 {[%clk 0:02:49]} 7. Qe3 {[%clk 0:02:44]}  Nxe4 {[%clk 0:02:49]} 8. Ne2 {[%clk 0:02:43]}  c5 {[%clk 0:02:47]} 9. a3 {[%clk 0:02:40]}  cxd4 {[%clk 0:02:46]} 10. Qxd4 {[%clk 0:02:38]}  Bc5 {[%clk 0:02:31]} 11. Qh8+ {[%clk 0:02:36]}  Ke7 {[%clk 0:02:28]} 12. Qxd8+ {[%clk 0:02:35]}  Kxd8 {[%clk 0:02:28]} 13. Nxe4 {[%clk 0:02:30]}  dxe4 {[%clk 0:02:29]} 14. Be3 {[%clk 0:02:25]}  Bxe3 {[%clk 0:02:11]} 15. fxe3 {[%clk 0:02:26]}  e5 {[%clk 0:02:06]} 16. g3 {[%clk 0:02:20]}  Nc6 {[%clk 0:01:51]} 17. Nc3 {[%clk 0:02:19]}  f5 {[%clk 0:01:51]} 18. Kf2 {[%clk 0:02:11]}  Be6 {[%clk 0:01:48]} 19. Rd1+ {[%clk 0:02:08]}  Ke7 {[%clk 0:01:46]} 20. Nd5+ {[%clk 0:02:05]}  Bxd5 {[%clk 0:01:45]} 21. Rxd5 {[%clk 0:02:05]}  Rd8 {[%clk 0:01:40]} 22. Rxd8 {[%clk 0:02:04]}  Nxd8 {[%clk 0:01:40]} 23. Bh3 {[%clk 0:02:00]}  Rd6 {[%clk 0:01:36]} 24. Ke2 {[%clk 0:01:58]}  Rf6 {[%clk 0:01:31]} 25. Rf1 {[%clk 0:01:56]}  Ke6 {[%clk 0:01:31]} 26. g4 {[%clk 0:01:54]}  fxg4 {[%clk 0:01:24]} 27. Bxg4+ {[%clk 0:01:52]}  Ke7 {[%clk 0:01:25]} 28. Rxf6 {[%clk 0:01:52]}  Kxf6 {[%clk 0:01:25]} 29. c4 {[%clk 0:01:43]}  a5 {[%clk 0:01:21]} 30. b3 {[%clk 0:01:38]}  b6 {[%clk 0:01:17]} 31. Bd7 {[%clk 0:01:38]}  Ke7 {[%clk 0:01:16]} 32. Bf5 {[%clk 0:01:37]}  h6 {[%clk 0:01:16]} 33. Bxe4 {[%clk 0:01:37]}  Kd6 {[%clk 0:01:14]} 34. b4 {[%clk 0:01:36]}  axb4 {[%clk 0:01:14]} 35. axb4 {[%clk 0:01:37]}  Ne6 {[%clk 0:01:11]} 36. Bd5 {[%clk 0:01:33]}  Nc7 {[%clk 0:01:07]} 37. Bb7 {[%clk 0:01:30]}  Ke6 {[%clk 0:00:57]} 38. Kf3 {[%clk 0:01:29]}  Kf5 {[%clk 0:00:57]} 39. Bc8+ {[%clk 0:01:28]}  Kg5 {[%clk 0:00:52]} 40. Ke4 {[%clk 0:01:26]}  Kf6 {[%clk 0:00:53]} 41. c5 {[%clk 0:01:19]}  bxc5 {[%clk 0:00:53]} 42. bxc5 {[%clk 0:01:20]}  Nb5 {[%clk 0:00:45]} 43. Kd5 {[%clk 0:01:15]}  Nc3+ {[%clk 0:00:45]} 44. Kc6 {[%clk 0:01:07]}  e4 {[%clk 0:00:43]} 45. Bg4 {[%clk 0:01:03]}  Ke7 {[%clk 0:00:34]} 46. Kb7 {[%clk 0:01:00]}  Nd5 {[%clk 0:00:28]} 47. c6 {[%clk 0:00:59]}  Kd6 {[%clk 0:00:25]} 48. Bf5 {[%clk 0:00:58]}  Nc7 {[%clk 0:00:16]} 49. Bxe4 {[%clk 0:00:57]}  Ne6 {[%clk 0:00:14]} 50. Bf3 {[%clk 0:00:56]}  Nc7 {[%clk 0:00:14]} 51. e4 {[%clk 0:00:53]}  Ne6 {[%clk 0:00:14]} 52. Kb6 {[%clk 0:00:40]}  Nf8 {[%clk 0:00:03]} 53. Bg4 {[%clk 0:00:35]}  Ng6 {[%clk 0:00:01]} 54. c7 {[%clk 0:00:34]}  Ne5 {[%clk 0:00:02]} 55. c8=Q {[%clk 0:00:29]} 1-0


[Site "https://www.chess.com"]

[Event "Titled Tuesday Blitz November 08 Early 2022"]
[White "Danielyan, Vahe"]
[Black "Bettalli, Francesco"]
[WhiteFideId "13304828"]
[BlackFideId "2816453"]
[WhiteElo "2423"]
[BlackElo "2216"]
[Result "0-1"]
[Round "05"]
[TimeControl "180+1"]
[Date "2022.11.09"]
[WhiteClock "0:00:24"]
[BlackClock "0:01:25"]

1. e4 {[%clk 0:03:00]}  e5 {[%clk 0:03:00]} 2. Nf3 {[%clk 0:03:00]}  Nf6 {[%clk 0:03:00]} 3. Nxe5 {[%clk 0:02:58]}  Nxe4 {[%clk 0:03:00]} 4. Qe2 {[%clk 0:02:57]}  Qe7 {[%clk 0:03:00]} 5. Qxe4 {[%clk 0:02:55]}  d6 {[%clk 0:03:00]} 6. Nc3 {[%clk 0:02:55]}  Qxe5 {[%clk 0:02:59]} 7. Qxe5+ {[%clk 0:02:54]}  dxe5 {[%clk 0:03:00]} 8. Bb5+ {[%clk 0:02:51]}  c6 {[%clk 0:02:59]} 9. Bc4 {[%clk 0:02:50]}  Bd6 {[%clk 0:03:00]} 10. b3 {[%clk 0:02:45]}  Nd7 {[%clk 0:02:58]} 11. Bb2 {[%clk 0:02:45]}  Nb6 {[%clk 0:02:58]} 12. Be2 {[%clk 0:02:41]}  Be6 {[%clk 0:02:59]} 13. O-O-O {[%clk 0:02:41]}  O-O-O {[%clk 0:02:59]} 14. Rhe1 {[%clk 0:02:41]}  Rhe8 {[%clk 0:02:58]} 15. Ne4 {[%clk 0:02:39]}  Bf8 {[%clk 0:02:55]} 16. Bf3 {[%clk 0:02:37]}  f6 {[%clk 0:02:55]} 17. d4 {[%clk 0:02:30]}  exd4 {[%clk 0:02:54]} 18. Rxd4 {[%clk 0:02:31]}  Nd5 {[%clk 0:02:51]} 19. Red1 {[%clk 0:02:29]}  Nf4 {[%clk 0:02:46]} 20. Rxd8+ {[%clk 0:02:28]}  Rxd8 {[%clk 0:02:47]} 21. Rxd8+ {[%clk 0:02:28]}  Kxd8 {[%clk 0:02:48]} 22. Kd2 {[%clk 0:02:27]}  h6 {[%clk 0:02:46]} 23. c4 {[%clk 0:02:26]}  f5 {[%clk 0:02:45]} 24. Ng3 {[%clk 0:02:25]}  g5 {[%clk 0:02:45]} 25. Be5 {[%clk 0:02:14]}  Ng6 {[%clk 0:02:42]} 26. Bf6+ {[%clk 0:02:15]}  Kd7 {[%clk 0:02:35]} 27. Bh5 {[%clk 0:02:01]}  Nf4 {[%clk 0:02:33]} 28. Bd4 {[%clk 0:01:31]}  b6 {[%clk 0:02:26]} 29. Bf3 {[%clk 0:01:30]}  g4 {[%clk 0:02:26]} 30. Bd1 {[%clk 0:01:17]}  Nxg2 {[%clk 0:02:25]} 31. Be5 {[%clk 0:01:17]}  Nh4 {[%clk 0:02:23]} 32. Bb8 {[%clk 0:01:16]}  a6 {[%clk 0:02:22]} 33. Bc2 {[%clk 0:01:10]}  Nf3+ {[%clk 0:02:19]} 34. Kd1 {[%clk 0:01:05]}  Nd4 {[%clk 0:02:18]} 35. Bd3 {[%clk 0:01:04]}  Bg7 {[%clk 0:02:17]} 36. Nh5 {[%clk 0:01:00]}  Bf8 {[%clk 0:02:12]} 37. Nf4 {[%clk 0:01:01]}  Bd6 {[%clk 0:02:09]} 38. Bxd6 {[%clk 0:01:00]}  Kxd6 {[%clk 0:02:10]} 39. h4 {[%clk 0:00:57]}  Ke5 {[%clk 0:02:02]} 40. Ng6+ {[%clk 0:00:55]}  Kf6 {[%clk 0:02:02]} 41. Nf4 {[%clk 0:00:56]}  Nf3 {[%clk 0:02:00]} 42. h5 {[%clk 0:00:56]}  Bf7 {[%clk 0:02:00]} 43. Be2 {[%clk 0:00:53]}  Ne5 {[%clk 0:01:56]} 44. c5 {[%clk 0:00:52]}  b5 {[%clk 0:01:54]} 45. Kc2 {[%clk 0:00:45]}  Kg5 {[%clk 0:01:54]} 46. Ng2 {[%clk 0:00:44]}  f4 {[%clk 0:01:52]} 47. Bf1 {[%clk 0:00:40]}  Bxh5 {[%clk 0:01:51]} 48. a4 {[%clk 0:00:39]}  Nd7 {[%clk 0:01:35]} 49. axb5 {[%clk 0:00:37]}  axb5 {[%clk 0:01:35]} 50. b4 {[%clk 0:00:38]}  Kf5 {[%clk 0:01:30]} 51. Bd3+ {[%clk 0:00:37]}  Ke5 {[%clk 0:01:30]} 52. Kc3 {[%clk 0:00:37]}  Nf6 {[%clk 0:01:30]} 53. Kd2 {[%clk 0:00:34]}  Nd5 {[%clk 0:01:30]} 54. Bh7 {[%clk 0:00:23]}  Nxb4 {[%clk 0:01:29]} 55. Nh4 {[%clk 0:00:24]}  Na6 {[%clk 0:01:27]} 56. Kc3 {[%clk 0:00:24]}  Nxc5 {[%clk 0:01:26]} 57. Kb4 {[%clk 0:00:24]}  Ne4 {[%clk 0:01:25]} 0-1


[Site "https://www.chess.com"]

[Event "Titled Tuesday Blitz November 08 Early 2022"]
[White "Derjabin, Ilja"]
[Black "Rudzinska, Michalina"]
[WhiteFideId "14104768"]
[BlackFideId "1172883"]
[WhiteElo "2312"]
[BlackElo "2207"]
[Result "1-0"]
[Round "05"]
[TimeControl "180+1"]
[Date "2022.11.09"]
[WhiteClock "0:00:10"]
[BlackClock "0:00:36"]

1. d4 {[%clk 0:02:28]}  Nf6 {[%clk 0:02:53]} 2. c4 {[%clk 0:02:28]}  e6 {[%clk 0:02:52]} 3. Nc3 {[%clk 0:02:28]}  Bb4 {[%clk 0:02:52]} 4. a3 {[%clk 0:02:27]}  Bxc3+ {[%clk 0:02:51]} 5. bxc3 {[%clk 0:02:28]}  d6 {[%clk 0:02:49]} 6. f3 {[%clk 0:02:28]}  O-O {[%clk 0:02:48]} 7. e4 {[%clk 0:02:25]}  Nbd7 {[%clk 0:02:44]} 8. Bd3 {[%clk 0:02:25]}  e5 {[%clk 0:02:44]} 9. Ne2 {[%clk 0:02:24]}  b6 {[%clk 0:02:43]} 10. O-O {[%clk 0:02:24]}  c5 {[%clk 0:02:42]} 11. f4 {[%clk 0:02:20]}  exd4 {[%clk 0:02:36]} 12. cxd4 {[%clk 0:02:19]}  cxd4 {[%clk 0:02:36]} 13. Nxd4 {[%clk 0:02:14]}  Bb7 {[%clk 0:02:32]} 14. Bb2 {[%clk 0:01:30]}  Nc5 {[%clk 0:02:27]} 15. Re1 {[%clk 0:01:25]}  Re8 {[%clk 0:02:25]} 16. Nf5 {[%clk 0:01:22]}  Bxe4 {[%clk 0:02:17]} 17. Bxe4 {[%clk 0:01:19]}  Ncxe4 {[%clk 0:02:18]} 18. Qd4 {[%clk 0:01:08]}  Qd7 {[%clk 0:02:07]} 19. Nxg7 {[%clk 0:01:05]}  Kxg7 {[%clk 0:02:02]} 20. Rxe4 {[%clk 0:01:05]}  Qf5 {[%clk 0:02:02]} 21. Rxe8 {[%clk 0:00:41]}  Rxe8 {[%clk 0:02:03]} 22. Qxd6 {[%clk 0:00:39]}  Re6 {[%clk 0:01:59]} 23. Qd2 {[%clk 0:00:36]}  Kg6 {[%clk 0:01:52]} 24. Be5 {[%clk 0:00:31]}  Rc6 {[%clk 0:01:47]} 25. Rc1 {[%clk 0:00:25]}  Qe4 {[%clk 0:01:40]} 26. Qf2 {[%clk 0:00:14]}  Ng4 {[%clk 0:01:37]} 27. Qg3 {[%clk 0:00:11]}  Qe3+ {[%clk 0:01:36]} 28. Qxe3 {[%clk 0:00:10]}  Nxe3 {[%clk 0:01:37]} 29. Kf2 {[%clk 0:00:08]}  Nxc4 {[%clk 0:01:36]} 30. Bd4 {[%clk 0:00:07]}  b5 {[%clk 0:01:34]} 31. Re1 {[%clk 0:00:05]}  Ra6 {[%clk 0:01:33]} 32. Bc5 {[%clk 0:00:05]}  Nxa3 {[%clk 0:01:32]} 33. Ra1 {[%clk 0:00:03]}  Rc6 {[%clk 0:01:14]} 34. Bxa3 {[%clk 0:00:02]}  a5 {[%clk 0:01:14]} 35. Be7 {[%clk 0:00:02]}  Rc2+ {[%clk 0:01:12]} 36. Kf3 {[%clk 0:00:02]}  a4 {[%clk 0:01:10]} 37. g4 {[%clk 0:00:02]}  Rc3+ {[%clk 0:01:08]} 38. Ke4 {[%clk 0:00:02]}  Rb3 {[%clk 0:01:08]} 39. f5+ {[%clk 0:00:03]}  Kg7 {[%clk 0:01:08]} 40. Bc5 {[%clk 0:00:04]}  b4 {[%clk 0:01:08]} 41. Bd4+ {[%clk 0:00:04]}  Kf8 {[%clk 0:01:07]} 42. Rc1 {[%clk 0:00:05]}  Ke7 {[%clk 0:01:06]} 43. Kd5 {[%clk 0:00:06]}  a3 {[%clk 0:01:04]} 44. Rc7+ {[%clk 0:00:06]}  Kd8 {[%clk 0:01:04]} 45. Ra7 {[%clk 0:00:07]}  Rd3 {[%clk 0:01:04]} 46. Kc4 {[%clk 0:00:07]}  Rd1 {[%clk 0:01:00]} 47. Bc5 {[%clk 0:00:07]}  Rc1+ {[%clk 0:00:55]} 48. Kd5 {[%clk 0:00:07]}  b3 {[%clk 0:00:52]} 49. Bxa3 {[%clk 0:00:07]}  Rd1+ {[%clk 0:00:50]} 50. Kc6 {[%clk 0:00:07]}  Ke8 {[%clk 0:00:37]} 51. Ra8+ {[%clk 0:00:07]}  Rd8 {[%clk 0:00:37]} 52. Rxd8+ {[%clk 0:00:08]}  Kxd8 {[%clk 0:00:38]} 53. Kd6 {[%clk 0:00:09]}  Ke8 {[%clk 0:00:37]} 54. Bb2 {[%clk 0:00:10]}  h6 {[%clk 0:00:37]} 55. h4 {[%clk 0:00:10]}  f6 {[%clk 0:00:37]} 56. Ke6 {[%clk 0:00:10]}  Kf8 {[%clk 0:00:35]} 57. Kxf6 {[%clk 0:00:11]}  Kg8 {[%clk 0:00:36]} 58. Kg6 {[%clk 0:00:11]}  h5 {[%clk 0:00:36]} 59. gxh5 {[%clk 0:00:10]} 1-0


[Site "https://www.chess.com"]

[Event "Titled Tuesday Blitz November 08 Early 2022"]
[White "Devaev, Alexander"]
[Black "Mohamed, Saeed Laily"]
[WhiteFideId "4169395"]
[BlackFideId "9314946"]
[WhiteElo "2225"]
[BlackElo "1874"]
[Result "1/2-1/2"]
[Round "05"]
[TimeControl "180+1"]
[Date "2022.11.09"]
[WhiteClock "0:00:14"]
[BlackClock "0:00:03"]

1. d4 {[%clk 0:02:54]}  d5 {[%clk 0:02:59]} 2. Nf3 {[%clk 0:02:54]}  Bf5 {[%clk 0:02:58]} 3. c4 {[%clk 0:02:53]}  e6 {[%clk 0:02:58]} 4. Nc3 {[%clk 0:02:53]}  Nc6 {[%clk 0:02:59]} 5. a3 {[%clk 0:02:51]}  Nf6 {[%clk 0:02:53]} 6. Bg5 {[%clk 0:02:50]}  Be7 {[%clk 0:02:52]} 7. e3 {[%clk 0:02:50]}  O-O {[%clk 0:02:51]} 8. Bxf6 {[%clk 0:02:44]}  Bxf6 {[%clk 0:02:51]} 9. cxd5 {[%clk 0:02:45]}  exd5 {[%clk 0:02:51]} 10. Qb3 {[%clk 0:02:46]}  Ne7 {[%clk 0:02:47]} 11. Be2 {[%clk 0:02:44]}  c6 {[%clk 0:02:46]} 12. O-O {[%clk 0:02:44]}  Rb8 {[%clk 0:02:39]} 13. a4 {[%clk 0:02:43]}  Nc8 {[%clk 0:02:38]} 14. h3 {[%clk 0:02:39]}  Nd6 {[%clk 0:02:35]} 15. Qd1 {[%clk 0:02:38]}  Qe7 {[%clk 0:02:24]} 16. Bd3 {[%clk 0:02:38]}  Qe6 {[%clk 0:02:05]} 17. Qc2 {[%clk 0:02:34]}  Rfe8 {[%clk 0:02:00]} 18. Rab1 {[%clk 0:02:30]}  Bxd3 {[%clk 0:01:44]} 19. Qxd3 {[%clk 0:02:28]}  Qf5 {[%clk 0:01:44]} 20. Qxf5 {[%clk 0:02:17]}  Nxf5 {[%clk 0:01:44]} 21. b4 {[%clk 0:02:18]}  Red8 {[%clk 0:01:21]} 22. Rb3 {[%clk 0:02:14]}  Rbc8 {[%clk 0:01:10]} 23. Rd1 {[%clk 0:02:08]}  a6 {[%clk 0:00:50]} 24. Ne2 {[%clk 0:01:19]}  Kf8 {[%clk 0:00:42]} 25. Nf4 {[%clk 0:01:18]}  Ke7 {[%clk 0:00:32]} 26. Nd3 {[%clk 0:01:19]}  Nd6 {[%clk 0:00:28]} 27. g4 {[%clk 0:01:15]}  h6 {[%clk 0:00:24]} 28. h4 {[%clk 0:01:15]}  g6 {[%clk 0:00:24]} 29. Kg2 {[%clk 0:01:13]}  h5 {[%clk 0:00:25]} 30. g5 {[%clk 0:01:11]}  Bg7 {[%clk 0:00:25]} 31. Rc1 {[%clk 0:01:07]}  Nc4 {[%clk 0:00:24]} 32. b5 {[%clk 0:01:02]}  axb5 {[%clk 0:00:24]} 33. axb5 {[%clk 0:01:02]}  Ra8 {[%clk 0:00:18]} 34. bxc6 {[%clk 0:00:52]}  bxc6 {[%clk 0:00:18]} 35. Nc5 {[%clk 0:00:52]}  Rdb8 {[%clk 0:00:16]} 36. Rcb1 {[%clk 0:00:52]}  Rxb3 {[%clk 0:00:15]} 37. Rxb3 {[%clk 0:00:53]}  Ra7 {[%clk 0:00:15]} 38. Rc3 {[%clk 0:00:48]}  Kd6 {[%clk 0:00:14]} 39. Rb3 {[%clk 0:00:29]}  Kc7 {[%clk 0:00:12]} 40. Ne1 {[%clk 0:00:26]}  Bf8 {[%clk 0:00:12]} 41. Ncd3 {[%clk 0:00:22]}  Bd6 {[%clk 0:00:12]} 42. Rc3 {[%clk 0:00:21]}  Ra2 {[%clk 0:00:12]} 43. Kf3 {[%clk 0:00:21]}  Nd2+ {[%clk 0:00:11]} 44. Kg2 {[%clk 0:00:20]}  Nc4 {[%clk 0:00:08]} 45. Kf1 {[%clk 0:00:20]}  Nd2+ {[%clk 0:00:08]} 46. Kg1 {[%clk 0:00:19]}  Nc4 {[%clk 0:00:07]} 47. Nf3 {[%clk 0:00:19]}  Ra1+ {[%clk 0:00:07]} 48. Kg2 {[%clk 0:00:19]}  Ra2 {[%clk 0:00:07]} 49. Nb4 {[%clk 0:00:19]}  Bxb4 {[%clk 0:00:07]} 50. Rc1 {[%clk 0:00:18]}  Nxe3+ {[%clk 0:00:06]} 51. Kg3 {[%clk 0:00:19]}  Nc4 {[%clk 0:00:06]} 52. Rb1 {[%clk 0:00:19]}  Bd6+ {[%clk 0:00:07]} 53. Kg2 {[%clk 0:00:17]}  Rb2 {[%clk 0:00:07]} 54. Ra1 {[%clk 0:00:17]}  Ne3+ {[%clk 0:00:08]} 55. Kg1 {[%clk 0:00:16]}  Nf5 {[%clk 0:00:07]} 56. Ra7+ {[%clk 0:00:16]}  Rb7 {[%clk 0:00:07]} 57. Ra8 {[%clk 0:00:17]}  Bf4 {[%clk 0:00:06]} 58. Rf8 {[%clk 0:00:17]}  Kd6 {[%clk 0:00:07]} 59. Rd8+ {[%clk 0:00:15]}  Rd7 {[%clk 0:00:07]} 60. Rc8 {[%clk 0:00:16]}  Rc7 {[%clk 0:00:06]} 61. Rd8+ {[%clk 0:00:15]}  Ke6 {[%clk 0:00:07]} 62. Ra8 {[%clk 0:00:15]}  Rb7 {[%clk 0:00:07]} 63. Re8+ {[%clk 0:00:16]}  Ne7 {[%clk 0:00:07]} 64. Kg2 {[%clk 0:00:14]}  Rb2 {[%clk 0:00:06]} 65. Ra8 {[%clk 0:00:15]}  Bd6 {[%clk 0:00:06]} 66. Ra6 {[%clk 0:00:15]}  Rc2 {[%clk 0:00:05]} 67. Kf1 {[%clk 0:00:15]}  c5 {[%clk 0:00:05]} 68. Ne1 {[%clk 0:00:14]}  Rc1 {[%clk 0:00:05]} 69. dxc5 {[%clk 0:00:11]}  Rxc5 {[%clk 0:00:04]} 70. Nd3 {[%clk 0:00:12]}  Rc3 {[%clk 0:00:04]} 71. Nf4+ {[%clk 0:00:12]}  Ke5 {[%clk 0:00:04]} 72. Ne2 {[%clk 0:00:12]}  Bc5 {[%clk 0:00:03]} 73. Nxc3 {[%clk 0:00:12]}  Nf5 {[%clk 0:00:03]} 74. Ra5 {[%clk 0:00:10]}  Bb4 {[%clk 0:00:03]} 75. Rxd5+ {[%clk 0:00:11]}  Ke6 {[%clk 0:00:03]} 76. Rd3 {[%clk 0:00:12]}  Bxc3 {[%clk 0:00:02]} 77. Rxc3 {[%clk 0:00:12]}  Nxh4 {[%clk 0:00:03]} 78. Rc7 {[%clk 0:00:09]}  Nf5 {[%clk 0:00:02]} 79. Kg2 {[%clk 0:00:09]}  Nd6 {[%clk 0:00:02]} 80. Kg3 {[%clk 0:00:09]}  Kf5 {[%clk 0:00:02]} 81. Rd7 {[%clk 0:00:09]}  Ne4+ {[%clk 0:00:03]} 82. Kg2 {[%clk 0:00:08]}  Nxg5 {[%clk 0:00:03]} 83. Rd5+ {[%clk 0:00:08]}  Kf6 {[%clk 0:00:03]} 84. Ra5 {[%clk 0:00:09]}  Ne6 {[%clk 0:00:04]} 85. Ra6 {[%clk 0:00:10]}  g5 {[%clk 0:00:04]} 86. Kg3 {[%clk 0:00:10]}  Kf5 {[%clk 0:00:04]} 87. Ra5+ {[%clk 0:00:11]}  Kg6 {[%clk 0:00:05]} 88. Ra6 {[%clk 0:00:11]}  Kf5 {[%clk 0:00:04]} 89. Ra5+ {[%clk 0:00:12]}  Kg6 {[%clk 0:00:04]} 90. Ra8 {[%clk 0:00:12]}  Kf6 {[%clk 0:00:04]} 91. Rg8 {[%clk 0:00:12]}  Kf5 {[%clk 0:00:02]} 92. Ra8 {[%clk 0:00:13]}  Kf6 {[%clk 0:00:03]} 93. Ra5 {[%clk 0:00:14]}  Kg6 {[%clk 0:00:03]} 1/2-1/2


[Site "https://www.chess.com"]

[Event "Titled Tuesday Blitz November 08 Early 2022"]
[White "Do Nascimento,Christian Almeida"]
[Black "Jiang, Andrew"]
[WhiteFideId "2143801"]
[BlackFideId "30953510"]
[WhiteElo "2079"]
[BlackElo "1868"]
[Result "0-1"]
[Round "05"]
[TimeControl "180+1"]
[Date "2022.11.09"]
[WhiteClock "0:00:12"]
[BlackClock "0:00:13"]

1. e4 {[%clk 0:03:00]}  e5 {[%clk 0:02:54]} 2. Nf3 {[%clk 0:02:59]}  Nc6 {[%clk 0:02:55]} 3. Bc4 {[%clk 0:02:58]}  Bc5 {[%clk 0:02:54]} 4. b4 {[%clk 0:02:57]}  Bxb4 {[%clk 0:02:53]} 5. c3 {[%clk 0:02:57]}  Ba5 {[%clk 0:02:54]} 6. d4 {[%clk 0:02:57]}  exd4 {[%clk 0:02:53]} 7. O-O {[%clk 0:02:57]}  Nf6 {[%clk 0:02:52]} 8. e5 {[%clk 0:02:51]}  d5 {[%clk 0:02:46]} 9. exd6 {[%clk 0:02:46]}  cxd6 {[%clk 0:02:39]} 10. Re1+ {[%clk 0:02:46]}  Kf8 {[%clk 0:02:37]} 11. Ng5 {[%clk 0:02:24]}  d5 {[%clk 0:02:32]} 12. Ba3+ {[%clk 0:01:59]}  Kg8 {[%clk 0:02:31]} 13. Bb3 {[%clk 0:01:55]}  h6 {[%clk 0:02:30]} 14. Nf3 {[%clk 0:01:52]}  dxc3 {[%clk 0:02:29]} 15. Bc2 {[%clk 0:01:41]}  d4 {[%clk 0:02:24]} 16. Qd3 {[%clk 0:01:32]}  Be6 {[%clk 0:02:17]} 17. Bc5 {[%clk 0:00:57]}  Bb6 {[%clk 0:02:14]} 18. Bxb6 {[%clk 0:00:53]}  axb6 {[%clk 0:02:15]} 19. a3 {[%clk 0:00:51]}  Qd5 {[%clk 0:02:12]} 20. h3 {[%clk 0:00:47]}  Qc5 {[%clk 0:01:55]} 21. Rd1 {[%clk 0:00:29]}  Bc4 {[%clk 0:01:27]} 22. Qf5 {[%clk 0:00:22]}  Qxf5 {[%clk 0:01:27]} 23. Bxf5 {[%clk 0:00:23]}  Rd8 {[%clk 0:01:27]} 24. Bd3 {[%clk 0:00:21]}  Bb3 {[%clk 0:01:02]} 25. Rc1 {[%clk 0:00:19]}  Nd5 {[%clk 0:00:55]} 26. Bb5 {[%clk 0:00:18]}  Nc7 {[%clk 0:00:50]} 27. Bxc6 {[%clk 0:00:18]}  bxc6 {[%clk 0:00:51]} 28. Nxc3 {[%clk 0:00:19]}  dxc3 {[%clk 0:00:50]} 29. Rxc3 {[%clk 0:00:20]}  Bd5 {[%clk 0:00:50]} 30. Ne5 {[%clk 0:00:20]}  Nb5 {[%clk 0:00:46]} 31. Rd3 {[%clk 0:00:18]}  Rd6 {[%clk 0:00:41]} 32. a4 {[%clk 0:00:17]}  Nc7 {[%clk 0:00:41]} 33. a5 {[%clk 0:00:17]}  bxa5 {[%clk 0:00:40]} 34. Rxa5 {[%clk 0:00:17]}  Re6 {[%clk 0:00:26]} 35. f4 {[%clk 0:00:17]}  f6 {[%clk 0:00:24]} 36. Ng6 {[%clk 0:00:15]}  Re1+ {[%clk 0:00:19]} 37. Kf2 {[%clk 0:00:14]}  Rb1 {[%clk 0:00:18]} 38. Nxh8 {[%clk 0:00:14]}  Kxh8 {[%clk 0:00:18]} 39. Ra7 {[%clk 0:00:14]}  Rb2+ {[%clk 0:00:17]} 40. Ke1 {[%clk 0:00:12]}  Ne6 {[%clk 0:00:17]} 41. Rd2 {[%clk 0:00:11]}  Rb1+ {[%clk 0:00:17]} 42. Rd1 {[%clk 0:00:12]}  Rb4 {[%clk 0:00:16]} 43. g3 {[%clk 0:00:12]}  Re4+ {[%clk 0:00:16]} 44. Kf1 {[%clk 0:00:12]}  Bc4+ {[%clk 0:00:15]} 45. Kf2 {[%clk 0:00:12]}  Re2+ {[%clk 0:00:14]} 46. Kf3 {[%clk 0:00:12]}  c5 {[%clk 0:00:15]} 47. Rc1 {[%clk 0:00:10]}  Nd4+ {[%clk 0:00:13]} 48. Kg4 {[%clk 0:00:11]}  Be6+ {[%clk 0:00:13]} 49. f5 {[%clk 0:00:11]}  Bxf5+ {[%clk 0:00:13]} 50. Kf4 {[%clk 0:00:12]}  Re4# {[%clk 0:00:13]} 0-1


[Site "https://www.chess.com"]